[Event "*** Titled Tuesday Blitz"]
[Site "Chess.com"]
[Date "2021.04.06"]
[Round "11"]
[White "mishanick"]
[Black "kirillshevchenko"]
[Result "1/2-1/2"]
[WhiteElo "2951"]
[BlackElo "2855"]
[TimeControl "180+1"]
[EndTime "12:08:38 PDT"]
[Termination "Game drawn - insufficient material"]

1. e4 {[%clk 0:03:00.9]} 1... e5 {[%clk 0:02:58.2]} 2. Nf3 {[%clk 0:03:01.6]}
2... d6 {[%clk 0:02:56.8]} 3. Nc3 {[%clk 0:03:00.9]} 3... Nf6 {[%clk 0:02:56.5]}
4. Bc4 {[%clk 0:03:00.4]} 4... Be7 {[%clk 0:02:55.2]} 5. O-O {[%clk 0:02:51.7]}
5... O-O {[%clk 0:02:54]} 6. d4 {[%clk 0:02:48.6]} 6... exd4 {[%clk 0:02:53.9]}
7. Nxd4 {[%clk 0:02:49.5]} 7... Re8 {[%clk 0:02:50.6]} 8. h3 {[%clk 0:02:32.8]}
8... Nc6 {[%clk 0:02:49.6]} 9. Nxc6 {[%clk 0:02:32]} 9... bxc6 {[%clk
0:02:50.5]} 10. Bg5 {[%clk 0:02:25.5]} 10... h6 {[%clk 0:02:47.7]} 11. Be3
{[%clk 0:02:25.6]} 11... Bf8 {[%clk 0:02:15.9]} 12. Qf3 {[%clk 0:02:25.1]} 12...
Be6 {[%clk 0:02:14]} 13. Bxe6 {[%clk 0:02:25]} 13... Rxe6 {[%clk 0:02:13]} 14.
Bd4 {[%clk 0:02:24.8]} 14... Nd7 {[%clk 0:02:10.3]} 15. Rad1 {[%clk 0:02:20.6]}
15... a5 {[%clk 0:02:09.2]} 16. b3 {[%clk 0:02:20.4]} 16... Qh4 {[%clk
0:01:57.4]} 17. Qg4 {[%clk 0:02:13.7]} 17... Qxg4 {[%clk 0:01:56.1]} 18. hxg4
{[%clk 0:02:14.6]} 18... Be7 {[%clk 0:01:44.4]} 19. f3 {[%clk 0:02:14.7]} 19...
Bf6 {[%clk 0:01:37.2]} 20. Kf2 {[%clk 0:02:14.1]} 20... Kf8 {[%clk 0:01:35.5]}
21. Rh1 {[%clk 0:02:07.3]} 21... Bxd4+ {[%clk 0:01:35.1]} 22. Rxd4 {[%clk
0:02:07]} 22... Re5 {[%clk 0:01:35.6]} 23. a4 {[%clk 0:01:56.4]} 23... Rc5
{[%clk 0:01:33.7]} 24. Rd3 {[%clk 0:01:56.7]} 24... Rb8 {[%clk 0:01:24.2]} 25.
Rc1 {[%clk 0:01:54.9]} 25... Ke7 {[%clk 0:01:18.1]} 26. Ne2 {[%clk 0:01:53.7]}
26... Rb4 {[%clk 0:01:14.1]} 27. Rc3 {[%clk 0:01:51.1]} 27... d5 {[%clk
0:01:05.5]} 28. exd5 {[%clk 0:01:38.6]} 28... cxd5 {[%clk 0:01:05.6]} 29. Rd1
{[%clk 0:01:35.8]} 29... Rxc3 {[%clk 0:01:04.4]} 30. Nxc3 {[%clk 0:01:35]} 30...
c6 {[%clk 0:01:05]} 31. Ne2 {[%clk 0:01:33.6]} 31... Kd6 {[%clk 0:01:02.9]} 32.
Ng3 {[%clk 0:01:31.1]} 32... g6 {[%clk 0:01:00.1]} 33. Rh1 {[%clk 0:01:31]}
33... c5 {[%clk 0:01:00.7]} 34. Rxh6 {[%clk 0:00:55.7]} 34... c4 {[%clk
0:01:00.8]} 35. bxc4 {[%clk 0:00:52]} 35... Rxc4 {[%clk 0:00:57.2]} 36. Nf5+
{[%clk 0:00:51.6]} 36... Ke6 {[%clk 0:00:50.6]} 37. Ne3 {[%clk 0:00:43]} 37...
Rxa4 {[%clk 0:00:50.8]} 38. Ke2 {[%clk 0:00:39.8]} 38... Ne5 {[%clk 0:00:42.7]}
39. Rh8 {[%clk 0:00:33.7]} 39... d4 {[%clk 0:00:42.9]} 40. Re8+ {[%clk
0:00:33.3]} 40... Kd6 {[%clk 0:00:41.8]} 41. f4 {[%clk 0:00:14.4]} 41... Nc6
{[%clk 0:00:33]} 42. Nd1 {[%clk 0:00:11.4]} 42... Rc4 {[%clk 0:00:33.5]} 43. Kd3
{[%clk 0:00:09.5]} 43... Rc5 {[%clk 0:00:31.9]} 44. Ra8 {[%clk 0:00:07.1]} 44...
Kc7 {[%clk 0:00:24.7]} 45. Rf8 {[%clk 0:00:05.8]} 45... f5 {[%clk 0:00:24.6]}
46. g5 {[%clk 0:00:04.1]} 46... a4 {[%clk 0:00:21]} 47. Ra8 {[%clk 0:00:03.4]}
47... Ra5 {[%clk 0:00:15.7]} 48. Rxa5 {[%clk 0:00:03]} 48... Nxa5 {[%clk
0:00:16.6]} 49. Kxd4 {[%clk 0:00:03]} 49... a3 {[%clk 0:00:16.3]} 50. Kc3 {[%clk
0:00:02.4]} 50... Kd6 {[%clk 0:00:11.9]} 51. Ne3 {[%clk 0:00:01.3]} 51... Ke6
{[%clk 0:00:07]} 52. g4 {[%clk 0:00:01.8]} 52... fxg4 {[%clk 0:00:06.9]} 53.
Nxg4 {[%clk 0:00:02.7]} 53... Nc4 {[%clk 0:00:04.9]} 54. Kb3 {[%clk 0:00:02.5]}
54... Kf5 {[%clk 0:00:03.9]} 55. Ne5 {[%clk 0:00:03.1]} 55... Nxe5 {[%clk
0:00:02.3]} 56. fxe5 {[%clk 0:00:04]} 56... Kxg5 {[%clk 0:00:02.8]} 57. Kxa3
{[%clk 0:00:04.3]} 57... Kf5 {[%clk 0:00:03.4]} 58. Kb4 {[%clk 0:00:04.1]} 58...
Kxe5 {[%clk 0:00:02.4]} 59. Kc3 {[%clk 0:00:04.4]} 59... Ke4 {[%clk 0:00:02.3]}
60. Kd2 {[%clk 0:00:04.9]} 60... g5 {[%clk 0:00:02.2]} 61. Ke2 {[%clk 0:00:05]}
61... g4 {[%clk 0:00:02.8]} 62. Kf2 {[%clk 0:00:05.6]} 62... Kd4 {[%clk
0:00:03.6]} 63. Kg3 {[%clk 0:00:05.7]} 63... Kc3 {[%clk 0:00:04.5]} 64. Kxg4
{[%clk 0:00:06.5]} 64... Kxc2 {[%clk 0:00:05.4]} 1/2-1/2

[Event "*** Titled Tuesday Blitz"]
[Site "Chess.com"]
[Date "2021.04.06"]
[Round "11"]
[White "MaevskiyNikolay"]
[Black "Leonid_Starozhilov"]
[Result "0-1"]
[WhiteElo "2565"]
[BlackElo "2712"]
[TimeControl "180+1"]
[EndTime "12:08:50 PDT"]
[Termination "Leonid_Starozhilov won by checkmate"]

1. Nf3 {[%clk 0:03:00]} 1... Nf6 {[%clk 0:03:00]} 2. c4 {[%clk 0:02:59.8]} 2...
g6 {[%clk 0:03:00.4]} 3. Nc3 {[%clk 0:02:57]} 3... d6 {[%clk 0:03:00.9]} 4. g3
{[%clk 0:02:57.1]} 4... Bg7 {[%clk 0:03:01.2]} 5. Bg2 {[%clk 0:02:57.5]} 5...
O-O {[%clk 0:03:02.1]} 6. O-O {[%clk 0:02:57.6]} 6... c6 {[%clk 0:03:03]} 7. d4
{[%clk 0:02:55.6]} 7... Bf5 {[%clk 0:03:02.1]} 8. Nh4 {[%clk 0:02:54.9]} 8...
Be6 {[%clk 0:03:02]} 9. b3 {[%clk 0:02:54.1]} 9... d5 {[%clk 0:03:02.3]} 10. Qd3
{[%clk 0:02:49.2]} 10... Na6 {[%clk 0:02:58.3]} 11. a3 {[%clk 0:02:47.8]} 11...
c5 {[%clk 0:02:49.2]} 12. cxd5 {[%clk 0:02:39.1]} 12... Nxd5 {[%clk 0:02:46.2]}
13. Nxd5 {[%clk 0:02:33.5]} 13... Bxd5 {[%clk 0:02:44.8]} 14. Bb2 {[%clk
0:01:49.3]} 14... Bxg2 {[%clk 0:02:29.1]} 15. Kxg2 {[%clk 0:01:48.5]} 15... cxd4
{[%clk 0:02:29.4]} 16. Qb5 {[%clk 0:01:39.3]} 16... Nc7 {[%clk 0:02:19.8]} 17.
Qxb7 {[%clk 0:01:35.5]} 17... Rb8 {[%clk 0:02:20]} 18. Qf3 {[%clk 0:01:35.5]}
18... e5 {[%clk 0:02:07.6]} 19. b4 {[%clk 0:01:30.4]} 19... a5 {[%clk
0:02:05.2]} 20. Qb3 {[%clk 0:01:20.2]} 20... Qd5+ {[%clk 0:01:51.8]} 21. Qxd5
{[%clk 0:01:19.8]} 21... Nxd5 {[%clk 0:01:52.7]} 22. Rfd1 {[%clk 0:01:06.1]}
22... axb4 {[%clk 0:01:47]} 23. axb4 {[%clk 0:01:06.1]} 23... Nxb4 {[%clk
0:01:41.7]} 24. Ba3 {[%clk 0:01:05.2]} 24... Rfc8 {[%clk 0:01:34.2]} 25. Bxb4
{[%clk 0:01:01.4]} 25... Rxb4 {[%clk 0:01:33.9]} 26. Ra2 {[%clk 0:00:48.6]}
26... e4 {[%clk 0:01:20.1]} 27. f3 {[%clk 0:00:46.6]} 27... f5 {[%clk
0:01:12.6]} 28. fxe4 {[%clk 0:00:40.9]} 28... fxe4 {[%clk 0:01:13.5]} 29. Kg1
{[%clk 0:00:33]} 29... Rbc4 {[%clk 0:01:10.8]} 30. Ng2 {[%clk 0:00:31.8]} 30...
Rc2 {[%clk 0:00:42.3]} 31. Rxc2 {[%clk 0:00:31.2]} 31... Rxc2 {[%clk 0:00:43.2]}
32. Kf1 {[%clk 0:00:31.6]} 32... g5 {[%clk 0:00:34.7]} 33. h4 {[%clk 0:00:31.4]}
33... h6 {[%clk 0:00:34.3]} 34. hxg5 {[%clk 0:00:31.3]} 34... hxg5 {[%clk
0:00:35.2]} 35. Ne1 {[%clk 0:00:23.6]} 35... Ra2 {[%clk 0:00:35.4]} 36. Rc1
{[%clk 0:00:23.3]} 36... Kf7 {[%clk 0:00:27.3]} 37. Rc5 {[%clk 0:00:20.8]} 37...
Kg6 {[%clk 0:00:23.4]} 38. Nc2 {[%clk 0:00:17]} 38... Kh5 {[%clk 0:00:16.4]} 39.
Rc4 {[%clk 0:00:14.9]} 39... d3 {[%clk 0:00:14.4]} 40. exd3 {[%clk 0:00:14.9]}
40... exd3 {[%clk 0:00:15]} 41. Ne3 {[%clk 0:00:13.6]} 41... Ra1+ {[%clk
0:00:14.1]} 42. Kf2 {[%clk 0:00:12.8]} 42... d2 {[%clk 0:00:13.7]} 43. Ke2
{[%clk 0:00:12.8]} 43... Rg1 {[%clk 0:00:10.3]} 44. Kxd2 {[%clk 0:00:10.9]}
44... Rxg3 {[%clk 0:00:08.7]} 45. Nf5 {[%clk 0:00:10.9]} 45... Rg2+ {[%clk
0:00:08]} 46. Ke3 {[%clk 0:00:10.4]} 46... Be5 {[%clk 0:00:07.5]} 47. Rc5 {[%clk
0:00:09.7]} 47... Bf4+ {[%clk 0:00:06.5]} 48. Kf3 {[%clk 0:00:09.7]} 48... Ra2
{[%clk 0:00:05.6]} 49. Rc6 {[%clk 0:00:09.7]} 49... Ra3+ {[%clk 0:00:05.2]} 50.
Ke4 {[%clk 0:00:09.4]} 50... Kg4 {[%clk 0:00:05.3]} 51. Nh6+ {[%clk 0:00:09.2]}
51... Kg3 {[%clk 0:00:05.6]} 52. Nf5+ {[%clk 0:00:09.4]} 52... Kh3 {[%clk
0:00:06.1]} 53. Rh6+ {[%clk 0:00:08.8]} 53... Kg4 {[%clk 0:00:06.3]} 54. Nd4
{[%clk 0:00:07.2]} 54... Ra4 {[%clk 0:00:05.5]} 55. Rh1 {[%clk 0:00:06]} 55...
Bg3 {[%clk 0:00:04.4]} 56. Rh8 {[%clk 0:00:05.2]} 56... Bf2 {[%clk 0:00:04]} 57.
Rd8 {[%clk 0:00:02.6]} 57... Rxd4+ {[%clk 0:00:03.9]} 58. Rxd4 {[%clk
0:00:03.3]} 58... Bxd4 {[%clk 0:00:04.8]} 59. Kxd4 {[%clk 0:00:04]} 59... Kf3
{[%clk 0:00:05.5]} 60. Kd3 {[%clk 0:00:04.7]} 60... g4 {[%clk 0:00:05.8]} 61.
Kd2 {[%clk 0:00:05.6]} 61... Kf2 {[%clk 0:00:06.4]} 62. Kd3 {[%clk 0:00:05.9]}
62... g3 {[%clk 0:00:07]} 63. Ke4 {[%clk 0:00:06.8]} 63... g2 {[%clk 0:00:07.9]}
64. Kf4 {[%clk 0:00:07.7]} 64... g1=Q {[%clk 0:00:08.8]} 65. Ke4 {[%clk
0:00:07.1]} 65... Qe1+ {[%clk 0:00:09]} 66. Kd3 {[%clk 0:00:08]} 66... Qe3+
{[%clk 0:00:09.4]} 67. Kc2 {[%clk 0:00:08.9]} 67... Qd4 {[%clk 0:00:09.8]} 68.
Kc1 {[%clk 0:00:08.9]} 68... Qd3 {[%clk 0:00:08.6]} 69. Kb2 {[%clk 0:00:08.8]}
69... Qc4 {[%clk 0:00:08.9]} 70. Ka1 {[%clk 0:00:08.3]} 70... Qb5 {[%clk
0:00:09.1]} 71. Ka2 {[%clk 0:00:08.5]} 71... Ke2 {[%clk 0:00:10]} 72. Ka3 {[%clk
0:00:09.4]} 72... Kd2 {[%clk 0:00:10.9]} 73. Ka2 {[%clk 0:00:10.2]} 73... Kc2
{[%clk 0:00:11.8]} 74. Ka1 {[%clk 0:00:11.1]} 74... Qb1# {[%clk 0:00:11]} 0-1

[Event "*** Titled Tuesday Blitz"]
[Site "Chess.com"]
[Date "2021.04.06"]
[Round "11"]
[White "vlad_Sid"]
[Black "Witik"]
[Result "1-0"]
[WhiteElo "2627"]
[BlackElo "2721"]
[TimeControl "180+1"]
[EndTime "12:08:52 PDT"]
[Termination "vlad_Sid won on time"]

1. c4 {[%clk 0:03:00.9]} 1... e5 {[%clk 0:02:57.6]} 2. g3 {[%clk 0:02:58.1]}
2... Nc6 {[%clk 0:02:56.4]} 3. Bg2 {[%clk 0:02:58.3]} 3... g6 {[%clk 0:02:56.7]}
4. Nc3 {[%clk 0:02:58.7]} 4... Bg7 {[%clk 0:02:57]} 5. Nf3 {[%clk 0:02:57.2]}
5... f5 {[%clk 0:02:55.2]} 6. O-O {[%clk 0:02:57]} 6... Nf6 {[%clk 0:02:53.5]}
7. Rb1 {[%clk 0:02:56]} 7... a5 {[%clk 0:02:49.4]} 8. a3 {[%clk 0:02:55.9]} 8...
O-O {[%clk 0:02:45.9]} 9. b4 {[%clk 0:02:54.2]} 9... axb4 {[%clk 0:02:46.5]} 10.
axb4 {[%clk 0:02:55.1]} 10... d6 {[%clk 0:02:40.9]} 11. b5 {[%clk 0:02:51.4]}
11... Ne7 {[%clk 0:02:41.1]} 12. d3 {[%clk 0:02:47.6]} 12... h6 {[%clk
0:02:38.4]} 13. Qc2 {[%clk 0:02:45.2]} 13... g5 {[%clk 0:02:35.4]} 14. Nd2
{[%clk 0:02:39.2]} 14... Rb8 {[%clk 0:02:09.4]} 15. e3 {[%clk 0:02:36.2]} 15...
Be6 {[%clk 0:02:06.2]} 16. f4 {[%clk 0:02:30.8]} 16... Ng6 {[%clk 0:01:57.1]}
17. Nb3 {[%clk 0:02:09.4]} 17... exf4 {[%clk 0:01:39.8]} 18. exf4 {[%clk
0:02:08.7]} 18... gxf4 {[%clk 0:01:38.8]} 19. Bxf4 {[%clk 0:02:08.9]} 19... Nxf4
{[%clk 0:01:34]} 20. Rxf4 {[%clk 0:02:09.8]} 20... Nh5 {[%clk 0:01:17.8]} 21.
Rf2 {[%clk 0:02:05.9]} 21... f4 {[%clk 0:01:17]} 22. Qe2 {[%clk 0:01:38]} 22...
Bf7 {[%clk 0:01:12.9]} 23. Ne4 {[%clk 0:01:37.4]} 23... fxg3 {[%clk 0:00:46.4]}
24. hxg3 {[%clk 0:01:38.3]} 24... Qe7 {[%clk 0:00:35]} 25. Rbf1 {[%clk
0:01:26.5]} 25... Bg6 {[%clk 0:00:35.1]} 26. g4 {[%clk 0:01:23.1]} 26... Nf6
{[%clk 0:00:17.2]} 27. Nxf6+ {[%clk 0:01:22.7]} 27... Bxf6 {[%clk 0:00:17.5]}
28. Bd5+ {[%clk 0:01:21.3]} 28... Kg7 {[%clk 0:00:14.2]} 29. Qxe7+ {[%clk
0:01:20.8]} 29... Bxe7 {[%clk 0:00:14.6]} 30. Nd4 {[%clk 0:01:21.3]} 30... Kh7
{[%clk 0:00:10.2]} 31. Rxf8 {[%clk 0:01:15.9]} 31... Rxf8 {[%clk 0:00:09.8]} 32.
Rxf8 {[%clk 0:01:15.7]} 32... Bxf8 {[%clk 0:00:10.7]} 33. Ne6 {[%clk 0:01:15.5]}
33... Be7 {[%clk 0:00:10.8]} 34. Nxc7 {[%clk 0:01:15.2]} 34... b6 {[%clk
0:00:09]} 35. Be4 {[%clk 0:01:04.3]} 35... Bf6 {[%clk 0:00:08.3]} 36. Nd5 {[%clk
0:01:02.5]} 36... Bd4+ {[%clk 0:00:08.6]} 37. Kg2 {[%clk 0:01:02.8]} 37... Bxe4+
{[%clk 0:00:07.6]} 38. dxe4 {[%clk 0:01:03.7]} 38... Kg6 {[%clk 0:00:08.2]} 39.
Kf3 {[%clk 0:01:02.7]} 39... Kg5 {[%clk 0:00:08.3]} 40. Nf4 {[%clk 0:01:01.4]}
40... Be5 {[%clk 0:00:06.9]} 41. Nh3+ {[%clk 0:00:51.3]} 41... Kh4 {[%clk
0:00:06.8]} 42. Nf4 {[%clk 0:00:45.5]} 42... Kg5 {[%clk 0:00:06.6]} 43. Ne6+
{[%clk 0:00:45.5]} 43... Kf6 {[%clk 0:00:05.3]} 44. Nc7 {[%clk 0:00:45.5]} 44...
Kg5 {[%clk 0:00:04.6]} 45. Nd5 {[%clk 0:00:38.6]} 45... Bd4 {[%clk 0:00:05.1]}
46. Ne3 {[%clk 0:00:27.2]} 46... Bc5 {[%clk 0:00:03.8]} 47. Nf5 {[%clk
0:00:24.1]} 47... h5 {[%clk 0:00:04.2]} 48. gxh5 {[%clk 0:00:24]} 48... Kxh5
{[%clk 0:00:05.1]} 49. Kf4 {[%clk 0:00:23.2]} 49... Kg6 {[%clk 0:00:05.4]} 50.
Ne7+ {[%clk 0:00:23.2]} 50... Kf7 {[%clk 0:00:05.1]} 51. Nd5 {[%clk 0:00:22]}
51... Ke6 {[%clk 0:00:05.5]} 52. Nc7+ {[%clk 0:00:19]} 52... Kd7 {[%clk
0:00:05.6]} 53. Na6 {[%clk 0:00:19]} 53... Bd4 {[%clk 0:00:04.9]} 54. Kf5 {[%clk
0:00:19.2]} 54... Be5 {[%clk 0:00:02.6]} 55. Nb8+ {[%clk 0:00:19.1]} 55... Kc7
{[%clk 0:00:03.2]} 56. Nc6 {[%clk 0:00:19.1]} 56... Bc3 {[%clk 0:00:04]} 57. Ke6
{[%clk 0:00:19.2]} 57... Bb2 {[%clk 0:00:04.4]} 58. Ne7 {[%clk 0:00:17.8]} 58...
Ba3 {[%clk 0:00:04.1]} 59. Nd5+ {[%clk 0:00:17.7]} 59... Kd8 {[%clk 0:00:04.7]}
60. Nxb6 {[%clk 0:00:16.7]} 60... Kc7 {[%clk 0:00:04.6]} 61. Nd5+ {[%clk
0:00:16.6]} 61... Kb7 {[%clk 0:00:04.7]} 62. Kd7 {[%clk 0:00:16.3]} 62... Bc5
{[%clk 0:00:04.9]} 63. Nf6 {[%clk 0:00:15.3]} 63... Bd4 {[%clk 0:00:04.8]} 64.
Ne8 {[%clk 0:00:15.1]} 64... Kb6 {[%clk 0:00:03.9]} 65. Nxd6 {[%clk 0:00:15.4]}
65... Kc5 {[%clk 0:00:04.5]} 66. Ke6 {[%clk 0:00:13.6]} 66... Bg1 {[%clk
0:00:04]} 67. e5 {[%clk 0:00:13.8]} 67... Bh2 {[%clk 0:00:04]} 68. Kf6 {[%clk
0:00:11.8]} 68... Bg3 {[%clk 0:00:02.2]} 69. Nf5 {[%clk 0:00:11.1]} 69... Bf4
{[%clk 0:00:01.8]} 70. Nd6 {[%clk 0:00:11.4]} 1-0

[Event "*** Titled Tuesday Blitz"]
[Site "Chess.com"]
[Date "2021.04.06"]
[Round "11"]
[White "TC2304"]
[Black "WPWPWP-2015"]
[Result "0-1"]
[WhiteElo "2277"]
[BlackElo "2426"]
[TimeControl "180+1"]
[EndTime "12:08:53 PDT"]
[Termination "WPWPWP-2015 won by resignation"]

1. d4 {[%clk 0:03:00.9]} 1... Nf6 {[%clk 0:02:59.2]} 2. Bg5 {[%clk 0:03:01.4]}
2... c5 {[%clk 0:02:54.4]} 3. Nc3 {[%clk 0:03:01]} 3... cxd4 {[%clk 0:02:53.8]}
4. Qxd4 {[%clk 0:03:01.9]} 4... Nc6 {[%clk 0:02:53.5]} 5. Qh4 {[%clk 0:03:02.4]}
5... Qa5 {[%clk 0:02:50.9]} 6. O-O-O {[%clk 0:03:01.9]} 6... d6 {[%clk
0:02:44.7]} 7. e4 {[%clk 0:03:01.8]} 7... Bd7 {[%clk 0:02:40.7]} 8. f4 {[%clk
0:03:00.4]} 8... O-O-O {[%clk 0:02:39.6]} 9. Nf3 {[%clk 0:02:58.8]} 9... h6
{[%clk 0:02:21.9]} 10. Bxf6 {[%clk 0:02:44.8]} 10... gxf6 {[%clk 0:02:22.8]} 11.
Kb1 {[%clk 0:02:38]} 11... Rg8 {[%clk 0:02:21.1]} 12. Qf2 {[%clk 0:02:21.7]}
12... Qc5 {[%clk 0:02:14.9]} 13. Qd2 {[%clk 0:02:14.4]} 13... h5 {[%clk
0:02:05.6]} 14. Nd5 {[%clk 0:02:13.6]} 14... Qa5 {[%clk 0:01:59.8]} 15. b4
{[%clk 0:02:06.1]} 15... Qa3 {[%clk 0:01:54.4]} 16. b5 {[%clk 0:01:58.9]} 16...
Na5 {[%clk 0:01:18.5]} 17. Qd4 {[%clk 0:01:52.5]} 17... Qc5 {[%clk 0:01:15.4]}
18. Qb2 {[%clk 0:01:41]} 18... Kb8 {[%clk 0:01:09.6]} 19. Rd3 {[%clk 0:01:35.1]}
19... Qxb5 {[%clk 0:00:41.6]} 20. Rb3 {[%clk 0:01:11.5]} 20... Qc5 {[%clk
0:00:31.8]} 21. Rc3 {[%clk 0:01:09.2]} 21... Qf2 {[%clk 0:00:23.8]} 22. Nc7
{[%clk 0:00:51.6]} 22... Qb6 {[%clk 0:00:18.9]} 23. Qxb6 {[%clk 0:00:40.2]}
23... axb6 {[%clk 0:00:19.8]} 24. Nd5 {[%clk 0:00:39]} 24... Rc8 {[%clk
0:00:14.9]} 25. Rxc8+ {[%clk 0:00:36.3]} 25... Bxc8 {[%clk 0:00:15.7]} 26. Nxb6
{[%clk 0:00:35.6]} 26... Bh6 {[%clk 0:00:15.6]} 27. g3 {[%clk 0:00:33.8]} 27...
e5 {[%clk 0:00:14]} 28. f5 {[%clk 0:00:32.9]} 28... Nc6 {[%clk 0:00:13.5]} 29.
Bd3 {[%clk 0:00:32.1]} 29... Be3 {[%clk 0:00:12.5]} 30. Nd5 {[%clk 0:00:31.9]}
30... Bc5 {[%clk 0:00:12.7]} 31. Nxf6 {[%clk 0:00:31.6]} 31... Rh8 {[%clk
0:00:13.1]} 32. Nd5 {[%clk 0:00:31.7]} 32... b6 {[%clk 0:00:11.9]} 33. Ng5
{[%clk 0:00:31.5]} 33... Rf8 {[%clk 0:00:10.4]} 34. Be2 {[%clk 0:00:30.6]} 34...
Nd4 {[%clk 0:00:09.5]} 35. Bxh5 {[%clk 0:00:30.1]} 35... f6 {[%clk 0:00:08.6]}
36. Nf3 {[%clk 0:00:24.7]} 36... Bb7 {[%clk 0:00:07.8]} 37. Nxd4 {[%clk
0:00:24.1]} 37... Bxd4 {[%clk 0:00:06.6]} 38. c4 {[%clk 0:00:22.1]} 38... Ba6
{[%clk 0:00:05.9]} 39. Rc1 {[%clk 0:00:21.7]} 39... Rh8 {[%clk 0:00:04.6]} 40.
g4 {[%clk 0:00:21.3]} 40... Rc8 {[%clk 0:00:03.8]} 41. Nxf6 {[%clk 0:00:21.6]}
41... Bxc4 {[%clk 0:00:03.3]} 42. Nd5 {[%clk 0:00:21.7]} 42... Bd3+ {[%clk
0:00:03.1]} 43. Rc2 {[%clk 0:00:20.2]} 43... Rxc2 {[%clk 0:00:02.8]} 44. Nb4
{[%clk 0:00:19.4]} 44... Rb2+ {[%clk 0:00:02.5]} 45. Kc1 {[%clk 0:00:18.6]}
45... Rxb4 {[%clk 0:00:02.7]} 46. f6 {[%clk 0:00:18.7]} 46... Bxe4 {[%clk
0:00:02.8]} 47. f7 {[%clk 0:00:18.3]} 47... Be3+ {[%clk 0:00:03]} 48. Kd1 {[%clk
0:00:18]} 48... Rb1+ {[%clk 0:00:02.7]} 49. Ke2 {[%clk 0:00:18]} 49... Bh6
{[%clk 0:00:01.4]} 50. g5 {[%clk 0:00:18.4]} 50... Bf8 {[%clk 0:00:02.1]} 51. g6
{[%clk 0:00:18.9]} 51... d5 {[%clk 0:00:02.5]} 52. Bg4 {[%clk 0:00:18.5]} 52...
Bg7 {[%clk 0:00:03.4]} 53. h4 {[%clk 0:00:18.1]} 53... Bxg6 {[%clk 0:00:04.3]}
54. Be6 {[%clk 0:00:17.7]} 54... Bxf7 {[%clk 0:00:05.1]} 55. Bxf7 {[%clk
0:00:18.6]} 55... Bh6 {[%clk 0:00:05.7]} 56. Bxd5 {[%clk 0:00:18.1]} 56... Rb2+
{[%clk 0:00:06.6]} 57. Kf3 {[%clk 0:00:18]} 57... Rh2 {[%clk 0:00:07.2]} 58. Kg4
{[%clk 0:00:17]} 58... Rd2 {[%clk 0:00:07.2]} 59. Bb3 {[%clk 0:00:14.2]} 59...
Bf4 {[%clk 0:00:08.1]} 60. Kf5 {[%clk 0:00:14.1]} 60... Kc7 {[%clk 0:00:08.4]}
61. h5 {[%clk 0:00:14.1]} 61... Rh2 {[%clk 0:00:08.2]} 62. Bf7 {[%clk
0:00:13.4]} 62... Kd6 {[%clk 0:00:08.3]} 63. Ke4 {[%clk 0:00:13.9]} 63... Rh1
{[%clk 0:00:08.1]} 64. Kf5 {[%clk 0:00:13.5]} 64... Rh2 {[%clk 0:00:08.2]} 65.
Ke4 {[%clk 0:00:13.8]} 65... Rf2 {[%clk 0:00:08.2]} 66. Kf5 {[%clk 0:00:14.2]}
66... Be3+ {[%clk 0:00:07.7]} 67. Ke4 {[%clk 0:00:14.6]} 67... Bh6 {[%clk
0:00:07.4]} 68. Bb3 {[%clk 0:00:14]} 68... Rf4+ {[%clk 0:00:07.1]} 69. Kd3
{[%clk 0:00:13.7]} 69... Ke7 {[%clk 0:00:06.8]} 70. Bd5 {[%clk 0:00:12]} 70...
Rd4+ {[%clk 0:00:06.2]} 71. Ke2 {[%clk 0:00:11.8]} 0-1